bitfinex/quotes_BTCUSD_20240908
["timestamp","ask_amount","ask_price","bid_price","bid_amount"]
[1725837817840,0.00081,54992.0,54991.0,1.22177988]
[1725837818046,0.00081,54992.0,54991.0,1.23577988]
[1725837818494,0.00081,54992.0,54991.0,1.22177988]
[1725837818712,0.00081,54992.0,54991.0,1.23577988]
[1725837819364,0.00081,54992.0,54991.0,0.597334]
[1725837819569,0.00081,54992.0,54991.0,0.88829]
[1725837819789,0.00081,54992.0,54991.0,0.90029]
[1725837819998,0.00081,54992.0,54991.0,1.191246]
[1725837820615,0.00081,54992.0,54991.0,1.175246]
[1725837820854,0.00081,54992.0,54991.0,1.189246]
[1725837821071,0.00081,54992.0,54991.0,1.31442628]
[1725837821538,0.00081,54992.0,54991.0,1.32842628]
[1725837821760,0.00081,54992.0,54991.0,1.31442628]
[1725837821991,0.00081,54992.0,54991.0,1.32842628]
[1725837822402,0.00081,54992.0,54991.0,1.32642628]
[1725837822624,0.00081,55002.0,55000.0,0.145453]
[1725837822831,0.00081,55002.0,55001.0,0.16255683]
[1725837823475,0.00081,55002.0,55001.0,0.30800783]
[1725837824836,0.00081,55002.0,55001.0,0.17655683]
[1725837826558,0.00081,55002.0,55001.0,0.32200783]
[1725837828222,0.00081,55002.0,55001.0,0.17655683]
[1725837828855,0.00081,55002.0,55001.0,0.32200783]
[1725837829717,0.00081,55002.0,55001.0,0.17655683]
[1725837830042,0.146259,55002.0,55001.0,0.17655683]
[1725837830277,0.800655,55002.0,55001.0,0.014]
[1725837830488,1.091553,55002.0,55001.0,0.014]
[1725837830643,1.12006205,55002.0,55001.0,0.014]
[1725837830878,1.12006205,55002.0,54989.0,0.16255683]
[1725837830879,0.290956,54991.0,54989.0,0.16255683]
[1725837831082,0.14548,54990.0,54989.0,0.16255683]
[1725837832107,0.145471,54994.0,54989.0,0.16255683]
[1725837832364,0.145466,54996.0,54993.0,0.16255683]
[1725837833189,0.145468,54995.0,54993.0,0.16255683]
[1725837833535,0.145463,54997.0,54993.0,0.19446051]
[1725837834337,0.145463,54997.0,54993.0,0.16255683]
[1725837834559,0.001,54996.0,54993.0,0.17055683]
[1725837834766,0.145463,54997.0,54993.0,0.16255683]
[1725837835171,0.146463,54997.0,54993.0,0.16855683]
[1725837835385,0.001,54997.0,54993.0,0.31402883]
[1725837835585,0.14546,54998.0,54993.0,0.30802883]
[1725837835806,0.14546,54998.0,54997.0,0.16255683]
[1725837836045,0.14546,54998.0,54997.0,0.16155683]
[1725837836250,0.19987386,54998.0,54997.0,0.16155683]
[1725837836888,0.05441386,54998.0,54997.0,0.16155683]
[1725837837317,0.24612783,54999.0,54997.0,0.16155683]
[1725837837521,0.24612783,54999.0,54997.0,0.16055683]
[1725837838098,0.24612783,54999.0,54997.0,0.16255683]
[1725837838310,0.22707979,54998.0,54997.0,0.16055683]
[1725837838762,0.290919,54998.0,54988.0,0.30804183]
[1725837838955,0.34545608,54995.0,54989.0,0.06656238]
[1725837839167,0.145474,54993.0,54989.0,0.06656238]
[1725837839361,0.19999408,54993.0,54992.0,0.16255683]
[1725837839517,0.19999408,54993.0,54992.0,0.20001725]
[1725837840180,0.05452008,54993.0,54992.0,0.20001725]
[1725837840508,0.22734462,54994.0,54992.0,0.20001725]
[1725837840728,0.08187362,54994.0,54992.0,0.20001725]
[1725837840926,0.10916482,54994.0,54992.0,0.20001725]
[1725837841135,0.45447245,54994.0,54992.0,0.20001725]
[1725837841342,0.10916482,54994.0,54993.0,0.0804]
[1725837841769,0.45408366,54994.0,54993.0,0.1434]
[1725837841969,0.45508366,54994.0,54993.0,0.1434]
[1725837842191,0.45508366,54994.0,54993.0,0.21959961]
[1725837842444,0.34491884,54994.0,54993.0,0.1434]
[1725837842670,0.001,54994.0,54993.0,0.587819]
[1725837843344,0.001,54994.0,54993.0,1.169711]
[1725837843345,0.34591884,54994.0,54993.0,1.169711]
[1725837843549,0.08291489,54994.0,54993.0,1.169711]
[1725837844471,0.08191489,54994.0,54993.0,1.161711]
[1725837844889,0.08191489,54994.0,54993.0,1.169711]
[1725837845095,0.08191489,54994.0,54993.0,1.161711]
[1725837845298,0.10922141,54995.0,54994.0,0.72735]
[1725837845740,0.000815,55002.0,55000.0,0.145454]
[1725837846150,0.13655117,55001.0,55000.0,0.436363]
[1725837846362,0.13736617,55002.0,55001.0,0.436354]
[1725837846590,0.13736617,55002.0,55001.0,0.590854]
[1725837847288,0.13737274,55002.0,55001.0,0.590854]
[1725837847558,0.13737274,55002.0,55001.0,0.299951]
[1725837848667,0.13737274,55002.0,55001.0,0.308951]
[1725837849140,0.13737274,55002.0,55001.0,0.299951]
[1725837849399,0.13737274,55002.0,55001.0,0.599854]
[1725837849883,0.13685774,55004.0,55001.0,1.18166]
[1725837850142,0.13655774,55009.0,55008.0,0.292866]
[1725837850371,0.13655774,55009.0,55006.0,0.01]
[1725837850372,0.00013,55011.0,55010.0,1.03469683]
[1725837850613,0.00013,55011.0,55010.0,1.43002251]
[1725837850848,0.00013,55011.0,55006.0,0.45343083]
[1725837851091,0.00013,55011.0,55010.0,0.16255683]
[1725837851578,0.00013,55011.0,55010.0,0.30798483]
[1725837852050,0.00013,55011.0,55010.0,0.16255683]
[1725837852297,0.06653,55011.0,55006.0,0.005]
[1725837852529,0.06653,55011.0,55001.0,0.0799]
[1725837852530,0.145441,55005.0,55001.0,0.0799]
[1725837852755,0.145441,55005.0,55002.0,0.23676941]
[1725837852964,0.06653,55011.0,55002.0,0.38221741]
[1725837853185,0.290861,55009.0,55002.0,0.38221741]
[1725837853445,0.00602412,55011.0,55003.0,0.145445]
[1725837853658,0.145433,55008.0,55006.0,0.16255683]
[1725837854758,0.00013,55011.0,55006.0,0.16255683]
[1725837854966,0.145434,55008.0,55006.0,0.16255683]
[1725837855613,0.145434,55008.0,55006.0,0.17355683]
[1725837855852,0.145434,55008.0,55006.0,0.16255683]
[1725837856055,0.145434,55008.0,55007.0,0.03833033]
[1725837857421,0.000945,55011.0,55007.0,0.03833033]
[1725837857612,0.145432,55009.0,55007.0,0.03833033]
[1725837858208,0.000945,55011.0,55009.0,0.145429]
[1725837858408,0.000945,55011.0,55010.0,0.59884083]
[1725837858647,0.000945,55011.0,55010.0,0.6463846]
[1725837858785,0.000945,55011.0,55010.0,0.9372406]
[1725837859399,0.000945,55011.0,55010.0,0.88969683]
[1725837859716,0.000945,55011.0,55003.0,0.290893]
[1725837859962,0.000945,55011.0,55003.0,0.0849]
[1725837860164,0.145432,55009.0,55003.0,0.230345]
[1725837860299,0.290862,55009.0,55003.0,0.0849]
[1725837860476,0.000945,55011.0,55004.0,0.145443]
[1725837860477,0.290857,55010.0,55004.0,0.145443]
[1725837860702,0.000945,55011.0,55004.0,0.145442]
[1725837860907,0.145432,55009.0,55004.0,0.24929208]
[1725837861328,0.145432,55009.0,55005.0,0.145441]
[1725837861582,0.00688638,55011.0,55006.0,0.16255683]
[1725837861788,0.145429,55010.0,55006.0,0.16255683]
[1725837862214,0.145431,55009.0,55006.0,0.16255683]
[1725837862391,0.290858,55010.0,55006.0,0.16255683]
[1725837862594,0.290858,55010.0,54999.0,0.0806]
[1725837862595,0.0664,55010.0,54999.0,0.0806]
[1725837862829,0.145449,55002.0,54999.0,0.0806]
[1725837863003,0.0664,55010.0,54999.0,0.0806]
[1725837863004,0.145444,55004.0,54999.0,0.0806]
[1725837863209,0.14544,55006.0,54999.0,0.0806]
[1725837863413,0.145436,55007.0,55005.0,0.16255683]
[1725837863619,0.29086,55010.0,55005.0,0.16255683]
[1725837863620,0.145438,55006.0,55005.0,0.16255683]
[1725837864283,0.145438,55006.0,55005.0,0.16655683]
[1725837864492,0.145437,55007.0,55005.0,0.16255683]
[1725837864685,0.290862,55009.0,55005.0,0.16755683]
[1725837864891,0.290862,55009.0,55006.0,0.03130018]
[1725837865630,0.145436,55007.0,55006.0,0.03130018]
[1725837866065,0.145433,55009.0,55006.0,0.03130018]
[1725837866842,0.000945,55011.0,55010.0,0.145428]
[1725837867115,0.000945,55011.0,55010.0,0.74984083]
[1725837868452,0.000945,55011.0,55010.0,0.76284083]
[1725837868663,0.000945,55011.0,55010.0,0.74984083]
[1725837869084,0.000945,55011.0,55010.0,1.04069683]
[1725837869561,0.000945,55011.0,55010.0,1.05369683]
[1725837872246,0.000945,55011.0,55010.0,1.04069683]
[1725837872685,0.000945,55011.0,55010.0,1.05469683]
[1725837873135,0.000945,55011.0,55010.0,1.05197983]
[1725837873755,0.000945,55011.0,55010.0,1.34283583]
[1725837873971,0.000945,55011.0,55010.0,1.77097541]
[1725837874198,0.000945,55011.0,55010.0,1.76897541]
[1725837874412,0.000945,55011.0,55010.0,1.78297541]
[1725837874891,0.000945,55011.0,55010.0,1.77097541]
[1725837875097,0.000945,55011.0,55010.0,1.78497541]
[1725837875327,0.000945,55011.0,55010.0,1.77097541]
[1725837875752,0.000945,55011.0,55010.0,1.78497541]
[1725837876676,0.0107721,55024.0,55010.0,1.78497541]
[1725837876677,0.0107721,55024.0,55023.0,1.165854]
[1725837876912,0.0107721,55024.0,55023.0,1.33041083]
[1725837877366,0.0107721,55024.0,55023.0,0.875067]
[1725837877582,0.0107721,55024.0,55023.0,0.45604983]
[1725837877807,0.0107721,55024.0,55023.0,0.50185481]
[1725837878056,0.0107721,55024.0,55019.0,0.16255683]
[1725837878274,0.145397,55022.0,55019.0,0.16255683]
[1725837878481,0.145399,55021.0,55019.0,0.16255683]
[1725837878708,0.145395,55023.0,55019.0,0.16255683]
[1725837878912,0.145397,55022.0,55019.0,0.16255683]
[1725837879331,0.1561631,55024.0,55019.0,0.38264911]
[1725837879543,0.1569781,55024.0,55023.0,0.16255683]
[1725837880900,0.0115871,55024.0,55019.0,0.23724611]
[1725837881135,0.145397,55022.0,55019.0,0.16255683]
[1725837881370,0.145397,55022.0,55019.0,0.17055683]
[1725837881589,0.145397,55022.0,55019.0,0.16255683]
[1725837881815,0.145394,55023.0,55019.0,0.16255683]
[1725837882063,0.145394,55023.0,55019.0,0.23724561]
[1725837882525,0.145394,55023.0,55019.0,0.24524561]
[1725837882742,0.145394,55023.0,55019.0,0.38264961]
[1725837882956,0.0115871,55024.0,55019.0,0.38264961]
[1725837883164,0.0115871,55024.0,55023.0,0.16255683]
[1725837883380,0.0115871,55024.0,55023.0,0.27148139]
[1725837883590,0.0115871,55024.0,55023.0,0.41687439]
[1725837885056,0.0115871,55024.0,55023.0,0.48467439]
[1725837885271,0.0115871,55024.0,55023.0,0.49367439]
[1725837885476,0.0115871,55024.0,55023.0,0.78446139]
[1725837885695,0.0115871,55024.0,55023.0,1.07524839]
[1725837886380,0.0115871,55024.0,55023.0,0.78446139]
[1725837888126,0.0115871,55024.0,55023.0,0.77546139]
[1725837888359,0.0115871,55024.0,55023.0,0.76113683]
[1725837890235,0.0115871,55024.0,55023.0,0.38574983]
[1725837890456,0.0115871,55024.0,55023.0,0.17255683]
[1725837890686,0.0115871,55024.0,55023.0,0.31794983]
[1725837891588,0.0115871,55024.0,55023.0,0.75213683]
[1725837891787,0.0115871,55024.0,55023.0,1.11813751]
[1725837892005,0.0115871,55024.0,55023.0,0.82735051]
[1725837896509,0.0115871,55024.0,55023.0,1.11813751]
[1725837896950,0.0115871,55024.0,55023.0,0.82735051]
[1725837897154,0.0115871,55024.0,55023.0,0.75213683]
[1725837897661,0.0115871,55024.0,55023.0,1.04292383]
[1725837898101,0.0115871,55024.0,55023.0,0.75213683]
[1725837898351,0.0115871,55024.0,55023.0,1.04292383]
[1725837898810,0.0115871,55024.0,55023.0,1.04492383]
[1725837899020,0.0115871,55024.0,55023.0,1.15257921]
[1725837899237,0.0115871,55024.0,55023.0,1.44136621]
[1725837899668,0.0115871,55024.0,55023.0,0.155393]
[1725837899904,0.0115871,55024.0,55023.0,0.01]
[1725837900368,0.0115871,55024.0,55020.0,0.00163]
[1725837900817,0.4477621,55024.0,55023.0,0.014]
[1725837901031,0.4477621,55024.0,55020.0,0.00163]
[1725837901032,0.145399,55021.0,55020.0,0.00163]
[1725837901266,0.0115871,55024.0,55020.0,0.0163342]
[1725837901473,0.1569781,55024.0,55023.0,0.17255683]
[1725837901698,0.1569781,55024.0,55023.0,0.16255683]
[1725837903228,0.145398,55022.0,55020.0,0.00163]
[1725837903450,0.145399,55021.0,55020.0,0.00163]
[1725837904732,0.3023691,55024.0,55020.0,0.00663]
[1725837904987,0.1569781,55024.0,55021.0,0.0152038]
[1725837905188,0.1569781,55024.0,55022.0,0.1498]
[1725837905420,0.0115871,55024.0,55022.0,0.1498]
[1725837905882,0.0115871,55024.0,55023.0,0.16255683]
[1725837906097,0.0115871,55024.0,55023.0,1.11266249]
[1725837906312,0.05443009,55036.0,55028.0,0.01]
[1725837906527,0.55430836,55037.0,55036.0,0.145359]
[1725837906733,0.02,55040.0,55036.0,0.05764598]
[1725837906734,0.145352,55039.0,55036.0,0.05764598]
[1725837906975,0.02,55040.0,55032.0,0.0854]
[1725837907206,0.02,55040.0,55027.0,0.16255683]
[1725837907207,0.14538,55028.0,55027.0,0.0854]
[1725837907434,0.290735,55033.0,55027.0,0.0854]
[1725837907664,0.145379,55029.0,55025.0,0.0662]
[1725837907872,0.145366,55034.0,55029.0,0.145376]
[1725837908080,0.290724,55035.0,55032.0,0.002]
[1725837908300,0.29072,55036.0,55030.0,0.05987038]
[1725837908523,0.145366,55034.0,55030.0,0.05987038]
[1725837909420,0.145359,55036.0,55030.0,0.05987038]
[1725837909636,0.145363,55035.0,55030.0,0.20524338]
[1725837909843,0.145363,55035.0,55031.0,0.03678002]
[1725837910051,0.145364,55034.0,55030.0,0.05987038]
[1725837910904,0.145364,55034.0,55031.0,0.004]
[1725837911112,0.145369,55032.0,55031.0,0.004]
[1725837911353,0.145375,55030.0,55024.0,0.14539]
[1725837911577,0.29073,55034.0,55030.0,0.007]
[1725837911800,0.29073,55034.0,55026.0,0.145385]
[1725837912027,0.145389,55025.0,55020.0,0.14813]
[1725837912249,0.145386,55026.0,55020.0,0.20828038]
[1725837912480,0.145386,55026.0,55021.0,0.145398]
[1725837912749,0.290763,55028.0,55020.0,0.20828038]
[1725837912953,0.145384,55027.0,55021.0,0.145397]
[1725837913194,0.145384,55027.0,55021.0,0.132397]
[1725837913404,0.145384,55027.0,55022.0,0.145395]
[1725837914056,0.145386,55026.0,55022.0,0.145395]
[1725837914291,0.001,55028.0,55023.0,0.145393]
[1725837914513,0.001,55028.0,55024.0,0.145389]
[1725837914725,0.145384,55027.0,55021.0,0.0571344]
[1725837914950,0.145384,55027.0,55022.0,0.21225612]
[1725837915196,0.145384,55027.0,55022.0,0.22125612]
[1725837915405,0.145384,55027.0,55022.0,0.21225612]
[1725837915631,0.145384,55027.0,55022.0,0.22525612]
[1725837916057,0.145384,55027.0,55022.0,0.21225612]
[1725837916263,0.02849462,55030.0,55023.0,0.17098492]
[1725837916517,0.17387062,55030.0,55025.0,0.145387]
[1725837916725,0.02849462,55030.0,55025.0,0.145387]
[1725837916929,0.02849462,55030.0,55028.0,0.16255683]
[1725837917390,0.245372,55031.0,55027.0,0.145382]
[1725837917619,0.145372,55031.0,55027.0,0.145382]
[1725837918001,0.145372,55031.0,55024.0,0.16255683]
[1725837918002,0.290751,55030.0,55024.0,0.16255683]
[1725837918176,0.146201,55026.0,55022.0,0.159395]
[1725837918402,0.000815,55026.0,55022.0,0.159395]
[1725837918617,0.146201,55026.0,55022.0,0.159395]
[1725837919261,0.146201,55026.0,55022.0,0.22148328]
[1725837919487,0.000815,55026.0,55023.0,0.145392]
[1725837920585,0.000815,55026.0,55022.0,0.23548228]
[1725837920815,0.000815,55026.0,55022.0,0.22148228]
[1725837921028,0.000815,55026.0,55023.0,0.158393]
[1725837921246,0.000815,55026.0,55023.0,0.167393]
[1725837921491,0.000815,55026.0,55023.0,0.158393]
[1725837921695,0.34526167,55030.0,55023.0,0.158393]
[1725837921696,0.05451067,55030.0,55023.0,0.158393]
[1725837921901,0.290757,55029.0,55024.0,0.07598808]
[1725837922542,0.436137,55029.0,55024.0,0.07598808]
[1725837922752,0.001,55026.0,55025.0,0.02313811]
[1725837923208,0.145381,55028.0,55025.0,0.02313811]
[1725837924386,0.05451067,55031.0,55026.0,0.584253]
[1725837924595,0.1,55031.0,55027.0,0.145382]
[1725837925002,0.1,55031.0,55030.0,0.436125]
[1725837925222,0.05451067,55035.0,55030.0,0.39450518]
[1725837925433,0.29987367,55035.0,55031.0,0.145371]
[1725837925849,0.15451067,55035.0,55032.0,0.145369]
[1725837926053,0.05451067,55036.0,55035.0,0.145362]
[1725837926269,0.05451067,55036.0,55035.0,0.436086]
[1725837927119,0.05451067,55037.0,55036.0,0.145359]
[1725837927528,0.05451067,55037.0,55036.0,0.144359]
[1725837927969,0.10904943,55037.0,55036.0,0.144359]
[1725837928192,0.10904943,55037.0,55036.0,0.22042438]
[1725837928409,0.05453876,55037.0,55036.0,0.22042438]
[1725837928609,0.05453876,55037.0,55036.0,0.22942438]
[1725837929077,0.05453876,55037.0,55036.0,0.39198121]
[1725837929288,0.05453876,55037.0,55036.0,0.40498121]
[1725837929736,0.05453876,55037.0,55036.0,1.13511721]
[1725837929948,0.07453876,55040.0,55039.0,0.145351]
[1725837930176,0.02,55040.0,55039.0,0.436053]
[1725837930800,0.02,55040.0,55039.0,0.874955]
[1725837931255,0.02,55040.0,55039.0,1.03751183]
[1725837931460,0.02,55040.0,55039.0,1.04651183]
[1725837931679,0.02,55040.0,55039.0,1.12257721]
[1725837932114,0.02,55040.0,55039.0,0.1572]
[1725837932298,0.02,55040.0,55039.0,0.302551]
[1725837932519,0.02,55040.0,55039.0,0.223151]
[1725837933034,0.02,55040.0,55039.0,0.599953]
[1725837933260,0.07451462,55040.0,55039.0,1.181357]
[1725837933457,0.02,55040.0,55039.0,1.181357]
[1725837934087,0.02,55040.0,55039.0,1.194357]
[1725837935660,0.02,55040.0,55039.0,1.181357]
[1725837936058,0.02,55040.0,55039.0,1.196357]
[1725837936488,0.02,55040.0,55039.0,1.183357]
[1725837936908,0.02,55040.0,55039.0,1.197357]
[1725837937057,0.02,55040.0,55039.0,1.188357]
[1725837937269,0.02,55040.0,55039.0,1.33491383]
[1725837937469,0.02,55040.0,55039.0,1.34891383]
[1725837938053,0.02,55040.0,55039.0,1.36291383]
[1725837938885,0.02,55040.0,55039.0,1.34891383]
[1725837939100,0.02,55040.0,55039.0,1.36291383]
[1725837939371,0.02,55040.0,55039.0,1.36491383]
[1725837939818,0.02,55040.0,55039.0,1.35091383]
[1725837940035,0.02,55040.0,55039.0,1.40539683]
[1725837940235,0.02,55040.0,55039.0,1.41939683]
[1725837940461,0.02,55040.0,55039.0,1.40539683]
[1725837940685,0.02,55040.0,55039.0,1.41939683]
[1725837940917,0.02,55040.0,55039.0,1.40539683]
[1725837941360,0.02,55040.0,55039.0,1.41939683]
[1725837942033,0.02,55040.0,55039.0,1.40539683]
[1725837942270,0.02,55040.0,55039.0,1.41939683]
[1725837942489,0.02,55040.0,55039.0,1.41739683]
[1725837943358,0.02,55040.0,55039.0,1.40339683]
[1725837943618,0.020815,55040.0,55039.0,1.40339683]
[1725837944063,0.020815,55040.0,55039.0,1.41739683]
[1725837952657,0.020815,55040.0,55039.0,1.41939683]
[1725837952847,0.020815,55040.0,55039.0,1.41739683]
[1725837953071,0.020815,55040.0,55039.0,1.41939683]
[1725837953292,0.020815,55040.0,55039.0,1.41739683]
[1725837953512,0.020815,55040.0,55039.0,1.41939683]
[1725837954349,0.020815,55040.0,55039.0,1.41739683]
[1725837954548,0.020815,55040.0,55039.0,1.41939683]
[1725837955122,0.020815,55040.0,55039.0,1.41739683]
[1725837955325,0.02076173,55040.0,55039.0,1.41739683]
[1725837959464,0.02076173,55040.0,55039.0,1.41939683]
[1725837960152,0.02076173,55040.0,55039.0,1.41739683]
[1725837961138,0.02076173,55040.0,55039.0,1.41939683]
[1725837961529,0.02076173,55040.0,55039.0,1.41739683]
[1725837962893,0.145348,55040.0,55039.0,0.028]
[1725837963105,0.02848532,55050.0,55039.0,0.028]
[1725837963332,0.145348,55040.0,55039.0,0.028]
[1725837963769,0.436045,55040.0,55039.0,0.014]
[1725837963985,0.436045,55040.0,55036.0,0.00163]
[1725837963986,0.145356,55037.0,55036.0,0.00163]
[1725837965047,0.436069,55037.0,55036.0,0.00163]
[1725837965362,0.436069,55037.0,55036.0,0.01363]
[1725837965569,0.61349793,55037.0,55036.0,0.02063]
[1725837965789,1.46969829,55037.0,55036.0,0.00863]
[1725837965997,1.46969829,55037.0,55036.0,0.01763]
[1725837965998,1.43859724,55037.0,55036.0,0.01763]
[1725837966271,1.60071265,55037.0,55036.0,0.01763]
[1725837966745,1.60071265,55037.0,55036.0,0.01063]
[1725837967000,1.11488424,55037.0,55036.0,0.01063]
[1725837967240,0.62494486,55037.0,55036.0,0.01663]
[1725837967467,0.54201837,55037.0,55036.0,0.01663]
[1725837967690,0.83273137,55037.0,55036.0,0.01663]
[1725837967911,0.88716648,55037.0,55036.0,0.00763]
[1725837968150,0.89116648,55037.0,55036.0,0.00763]
[1725837968395,1.13044437,55037.0,55036.0,0.00863]
[1725837968612,1.21510874,55037.0,55036.0,0.00163]
[1725837968825,1.46773784,55037.0,55036.0,0.00163]
[1725837969037,1.46773784,55037.0,55036.0,0.00463]
[1725837969038,1.83247157,55037.0,55036.0,0.00463]
[1725837969687,2.12318457,55037.0,55036.0,0.00463]
[1725837970653,2.12318457,55037.0,55036.0,0.00163]
[1725837970654,1.97544793,55037.0,55036.0,0.00163]
[1725837970874,2.02694392,55037.0,55036.0,0.00163]
[1725837971096,1.8925621,55037.0,55036.0,0.00263]
[1725837971537,2.36525817,55037.0,55036.0,0.00163]
[1725837971780,2.36525817,55037.0,55021.0,0.00163]
[1725837971781,1.017772,55022.0,55021.0,0.00163]
[1725837972039,1.117772,55022.0,55021.0,0.00163]
[1725837972819,1.17218617,55022.0,55021.0,0.00163]
[1725837973060,1.19939325,55022.0,55021.0,0.00163]
[1725837973533,1.17215019,55022.0,55021.0,0.00163]
[1725837973771,1.20515019,55022.0,55021.0,0.00163]
[1725837974032,1.23239325,55022.0,55021.0,0.00363]
[1725837974260,1.50476886,55022.0,55021.0,0.00363]
[1725837974509,1.26052925,55022.0,55021.0,0.00163]
[1725837974704,1.23629419,55022.0,55021.0,0.00163]
[1725837974970,1.24429419,55022.0,55021.0,0.00163]
[1725837975257,1.53108619,55022.0,55021.0,0.00163]
[1725837975481,1.449564,55022.0,55021.0,0.00163]
[1725837975668,1.454564,55022.0,55021.0,0.00163]
[1725837976143,1.4675822,55022.0,55021.0,0.00163]
[1725837976394,1.62213903,55022.0,55021.0,0.00163]
[1725837976889,1.61713903,55022.0,55021.0,0.00163]
[1725837977097,1.6270585,55022.0,55021.0,0.00163]
[1725837977349,1.88610725,55022.0,55021.0,0.00163]
[1725837977574,1.72445414,55022.0,55021.0,0.00163]
[1725837977816,1.73045414,55022.0,55021.0,0.00163]
[1725837978021,1.91897528,55022.0,55021.0,0.00163]
[1725837978256,1.4976443,55022.0,55021.0,0.00163]
[1725837978472,1.71338623,55022.0,55021.0,0.00163]
[1725837978656,1.87995279,55022.0,55021.0,0.00163]
[1725837978897,1.89595279,55022.0,55021.0,0.00163]
[1725837979107,1.66506225,55022.0,55021.0,0.00163]
[1725837979317,1.85004532,55022.0,55021.0,0.00163]
[1725837979526,1.86404532,55022.0,55021.0,0.00163]
[1725837979946,1.70756706,55022.0,55021.0,0.00163]
[1725837980279,1.018013,55009.0,55008.0,0.00163]
[1725837980431,1.58143083,55009.0,55008.0,0.00163]
[1725837980901,1.60443083,55009.0,55008.0,0.00163]
[1725837981612,1.60943083,55009.0,55008.0,0.00163]
[1725837981829,1.60543083,55009.0,55008.0,0.00163]
[1725837982269,1.61943083,55009.0,55008.0,0.00163]
[1725837982483,1.60743083,55009.0,55008.0,0.00163]
[1725837982698,0.01,55000.0,54999.0,0.00163]
[1725837982946,1.48164683,55000.0,54999.0,0.00163]
[1725837983165,1.58164683,55000.0,54999.0,0.00163]
[1725837983400,1.60464683,55000.0,54999.0,0.00163]
[1725837984101,0.08125119,55015.0,55002.0,0.085]
[1725837984304,0.014,55009.0,55008.0,0.085]
[1725837984563,0.02777278,55023.0,55011.0,0.145422]
[1725837984768,0.290805,55020.0,55013.0,0.16255683]
[1725837985034,0.30981495,55022.0,55009.0,0.0853]
[1725837985246,0.436284,55010.0,55009.0,0.0853]
[1725837985526,0.436284,55010.0,55009.0,0.0843]
[1725837985748,0.536284,55010.0,55009.0,0.0843]
[1725837986200,0.1,55010.0,54999.0,0.16418683]
[1725837986416,0.145437,55007.0,55002.0,0.001]
[1725837986850,0.145437,55007.0,55000.0,0.145454]
[1725837987293,0.145437,55007.0,55002.0,0.0672]
[1725837987738,0.145432,55009.0,55002.0,0.212649]
[1725837987975,0.02850455,55007.0,55002.0,0.212649]
[1725837988190,0.1,55008.0,55002.0,0.212649]
[1725837988401,0.1,55008.0,55003.0,0.145446]
[1725837988612,0.1,55008.0,55004.0,0.0812]
[1725837989753,0.001,55007.0,55004.0,0.0812]
[1725837990190,0.1,55008.0,55004.0,0.0812]
[1725837990413,0.1,55008.0,55007.0,0.145436]
[1725837990647,0.00597119,55010.0,55007.0,0.145436]
[1725837990911,0.00597119,55010.0,55005.0,0.145439]
[1725837991166,0.1,55011.0,55004.0,0.0842]
[1725837991387,0.31553195,55022.0,55004.0,0.0842]
[1725837991388,0.1,55012.0,55011.0,0.145425]
[1725837991609,0.1,55015.0,55014.0,0.145416]
[1725837991849,0.145404,55019.0,55014.0,0.30697283]
[1725837992040,0.145409,55017.0,55014.0,0.23701851]
[1725837992257,0.245407,55018.0,55014.0,0.16255683]
[1725837992716,0.1,55018.0,55014.0,0.16255683]
[1725837992927,0.145413,55016.0,55011.0,0.209525]
[1725837993160,0.1,55015.0,55011.0,0.208525]
[1725837993372,0.1,55015.0,55013.0,0.145417]
[1725837993820,0.1,55015.0,55012.0,0.07446388]
[1725837994049,0.1,55015.0,55012.0,0.07346388]
[1725837994736,0.1,55015.0,55014.0,0.226417]
[1725837994959,0.03353542,55020.0,55017.0,0.145409]
[1725837995189,0.1,55019.0,55015.0,0.144412]
[1725837995410,0.13353542,55020.0,55015.0,0.144412]
[1725837995873,0.02849925,55019.0,55015.0,0.144412]
[1725837996289,0.02849925,55019.0,55015.0,0.21953656]
[1725837996519,0.02849925,55019.0,55015.0,0.21853656]
[1725837996762,0.02849925,55019.0,55018.0,0.37556283]
[1725837997199,0.02949925,55019.0,55018.0,1.03538883]
[1725837997854,0.00579961,55021.0,55020.0,0.145401]
[1725837998070,0.00579961,55021.0,55020.0,0.143401]
[1725837998341,0.000816,55022.0,55020.0,0.143401]
[1725837998549,0.000816,55022.0,55018.0,0.75857383]
[1725837998752,0.000816,55022.0,55019.0,0.145403]
[1725837998965,0.0067068,55022.0,55019.0,0.145403]
[1725837999175,0.001,55021.0,55020.0,0.003]
[1725837999597,0.001,55021.0,55020.0,0.012]
[1725837999828,0.002,55021.0,55020.0,0.012]
[1725838000244,0.001,55021.0,55020.0,0.003]
[1725838000461,0.001,55021.0,55020.0,0.238001]
[1725838001025,0.001816,55022.0,55021.0,0.145399]
[1725838001132,0.000816,55022.0,55021.0,0.0796]
[1725838001360,0.000816,55022.0,55021.0,0.0786]
[1725838001589,0.000816,55022.0,55021.0,0.0776]
[1725838001803,0.000816,55022.0,55020.0,0.013]
[1725838001804,0.145399,55021.0,55020.0,0.013]
[1725838002016,0.436197,55021.0,55020.0,0.013]
[1725838002231,0.437197,55021.0,55020.0,0.016]
[1725838002456,0.437197,55021.0,55020.0,0.013]
[1725838002457,0.145399,55021.0,55020.0,0.013]
[1725838002668,0.000816,55019.0,55018.0,0.23015683]
[1725838003516,0.14622,55019.0,55018.0,0.23015683]
[1725838003978,0.000816,55019.0,55018.0,0.23015683]
[1725838004673,0.001816,55019.0,55018.0,0.32375683]
[1725838005148,0.002816,55019.0,55018.0,0.32775683]
[1725838007751,0.002816,55019.0,55018.0,0.47316283]
[1725838008166,0.002816,55019.0,55018.0,0.76397583]
[1725838008629,0.002816,55019.0,55018.0,0.47316283]
[1725838009504,0.000816,55022.0,55018.0,0.61856983]
[1725838009726,0.01902195,55029.0,55028.0,0.14538]
[1725838009943,0.01902195,55029.0,55028.0,1.06209683]
[1725838010196,0.000815,55040.0,55039.0,0.301451]
[1725838010436,0.000815,55040.0,55039.0,0.46400783]
[1725838010677,0.000815,55040.0,55039.0,0.75470983]
[1725838010936,0.000815,55040.0,55039.0,0.46300783]